[Event "Titled Tuesday Blitz July 05 Late 2022"]
[White "Fishbein, Alexander"]
[Black "Derraugh, Geordie"]
[WhiteFideId "2000377"]
[BlackFideId "2603950"]
[WhiteElo "2410"]
[BlackElo "2116"]
[Result "1-0"]
[Round "03"]
[TimeControl "180+1"]
[Date "2022.07.06"]
[WhiteClock "0:00:09"]
[BlackClock "0:00:11"]

1. e4 {[%clk 0:03:00]}  c5 {[%clk 0:02:55]} 2. Nf3 {[%clk 0:02:59]}  d6 {[%clk 0:02:55]} 3. d4 {[%clk 0:02:57]}  cxd4 {[%clk 0:02:56]} 4. Nxd4 {[%clk 0:02:56]}  Nf6 {[%clk 0:02:56]} 5. Nc3 {[%clk 0:02:56]}  a6 {[%clk 0:02:57]} 6. Nb3 {[%clk 0:02:49]}  Nc6 {[%clk 0:02:56]} 7. a4 {[%clk 0:02:47]}  Be6 {[%clk 0:02:52]} 8. Be2 {[%clk 0:02:46]}  Rc8 {[%clk 0:02:50]} 9. O-O {[%clk 0:02:45]}  g6 {[%clk 0:02:41]} 10. Bg5 {[%clk 0:02:43]}  Bg7 {[%clk 0:02:41]} 11. f4 {[%clk 0:02:39]}  Nb4 {[%clk 0:02:38]} 12. Kh1 {[%clk 0:02:35]}  h6 {[%clk 0:02:32]} 13. Bh4 {[%clk 0:02:34]}  Bc4 {[%clk 0:02:16]} 14. Bxc4 {[%clk 0:02:31]}  Rxc4 {[%clk 0:02:14]} 15. Qe2 {[%clk 0:02:31]}  Rc6 {[%clk 0:01:56]} 16. Rad1 {[%clk 0:02:27]}  Qc7 {[%clk 0:01:54]} 17. e5 {[%clk 0:02:17]}  dxe5 {[%clk 0:01:49]} 18. fxe5 {[%clk 0:02:16]}  Nd7 {[%clk 0:01:47]} 19. Qe4 {[%clk 0:02:01]}  a5 {[%clk 0:01:41]} 20. Bg3 {[%clk 0:01:38]}  Nxe5 {[%clk 0:01:34]} 21. Nb5 {[%clk 0:01:34]}  Qb8 {[%clk 0:01:30]} 22. c3 {[%clk 0:01:30]}  Na6 {[%clk 0:01:27]} 23. Nxa5 {[%clk 0:01:27]}  Re6 {[%clk 0:01:28]} 24. Qxb7 {[%clk 0:01:24]}  O-O {[%clk 0:01:22]} 25. Qxb8 {[%clk 0:01:20]}  Rxb8 {[%clk 0:01:23]} 26. Nb3 {[%clk 0:01:08]}  Ra8 {[%clk 0:01:21]} 27. N3d4 {[%clk 0:01:07]}  Rb6 {[%clk 0:01:20]} 28. Rfe1 {[%clk 0:01:03]}  Nc4 {[%clk 0:01:17]} 29. b3 {[%clk 0:01:00]}  e5 {[%clk 0:01:11]} 30. bxc4 {[%clk 0:00:57]}  exd4 {[%clk 0:01:11]} 31. cxd4 {[%clk 0:00:57]}  Nb4 {[%clk 0:01:11]} 32. c5 {[%clk 0:00:54]}  Rb7 {[%clk 0:01:11]} 33. Nd6 {[%clk 0:00:53]}  Rba7 {[%clk 0:01:11]} 34. h3 {[%clk 0:00:40]}  Nc2 {[%clk 0:01:08]} 35. Re4 {[%clk 0:00:36]}  Rxa4 {[%clk 0:01:07]} 36. d5 {[%clk 0:00:35]}  Ra1 {[%clk 0:00:53]} 37. Rxa1 {[%clk 0:00:34]}  Rxa1+ {[%clk 0:00:53]} 38. Kh2 {[%clk 0:00:34]}  Bd4 {[%clk 0:00:54]} 39. Rxd4 {[%clk 0:00:29]}  Nxd4 {[%clk 0:00:54]} 40. Be5 {[%clk 0:00:28]}  Rd1 {[%clk 0:00:50]} 41. Bxd4 {[%clk 0:00:23]}  Rxd4 {[%clk 0:00:51]} 42. c6 {[%clk 0:00:23]}  Rxd5 {[%clk 0:00:51]} 43. c7 {[%clk 0:00:23]}  Rc5 {[%clk 0:00:51]} 44. c8=Q+ {[%clk 0:00:23]}  Rxc8 {[%clk 0:00:52]} 45. Nxc8 {[%clk 0:00:23]}  Kg7 {[%clk 0:00:52]} 46. Nd6 {[%clk 0:00:22]}  f5 {[%clk 0:00:52]} 47. Kg3 {[%clk 0:00:21]}  Kf6 {[%clk 0:00:53]} 48. Kf3 {[%clk 0:00:20]}  g5 {[%clk 0:00:52]} 49. Nc4 {[%clk 0:00:20]}  h5 {[%clk 0:00:50]} 50. Ke3 {[%clk 0:00:18]}  Ke6 {[%clk 0:00:48]} 51. Kd4 {[%clk 0:00:17]}  h4 {[%clk 0:00:47]} 52. Ne3 {[%clk 0:00:15]}  Kf6 {[%clk 0:00:42]} 53. Kd5 {[%clk 0:00:15]}  g4 {[%clk 0:00:34]} 54. hxg4 {[%clk 0:00:15]}  f4 {[%clk 0:00:29]} 55. Nd1 {[%clk 0:00:14]}  Kg5 {[%clk 0:00:13]} 56. Nf2 {[%clk 0:00:14]}  f3 {[%clk 0:00:11]} 57. gxf3 {[%clk 0:00:14]}  Kf4 {[%clk 0:00:12]} 58. Nh3+ {[%clk 0:00:08]}  Kxf3 {[%clk 0:00:10]} 59. g5 {[%clk 0:00:09]}  Kg3 {[%clk 0:00:11]} 60. g6 {[%clk 0:00:09]}  Kxh3 {[%clk 0:00:11]} 61. g7 {[%clk 0:00:09]}  Kh2 {[%clk 0:00:10]} 62. g8=Q {[%clk 0:00:09]}  h3 {[%clk 0:00:11]} 63. Qg4 {[%clk 0:00:09]}  Kh1 {[%clk 0:00:11]} 64. Qxh3+ {[%clk 0:00:09]} 1-0


[Site "https://www.chess.com"]

[Event "Titled Tuesday Blitz July 05 Late 2022"]
[White "Gomez Ledo, Roberto Carlos"]
[Black "Swiercz, Dariusz"]
[WhiteFideId "3507076"]
[BlackFideId "1126881"]
[WhiteElo "2379"]
[BlackElo "2627"]
[Result "0-1"]
[Round "03"]
[TimeControl "180+1"]
[Date "2022.07.05"]
[WhiteClock "0:00:06"]
[BlackClock "0:00:09"]

1. d4 {[%clk 0:03:00]}  Nf6 {[%clk 0:02:58]} 2. Bf4 {[%clk 0:02:58]}  g6 {[%clk 0:02:54]} 3. Nc3 {[%clk 0:02:58]}  d5 {[%clk 0:02:55]} 4. Nb5 {[%clk 0:02:57]}  Na6 {[%clk 0:02:54]} 5. e3 {[%clk 0:02:57]}  Bg7 {[%clk 0:02:54]} 6. h3 {[%clk 0:02:57]}  O-O {[%clk 0:02:54]} 7. Nf3 {[%clk 0:02:57]}  c6 {[%clk 0:02:55]} 8. Na3 {[%clk 0:02:56]}  Nc7 {[%clk 0:02:52]} 9. Be2 {[%clk 0:02:55]}  Ne6 {[%clk 0:02:40]} 10. Bh2 {[%clk 0:02:54]}  b5 {[%clk 0:02:39]} 11. O-O {[%clk 0:02:53]}  Bb7 {[%clk 0:02:38]} 12. Nb1 {[%clk 0:02:53]}  a6 {[%clk 0:02:36]} 13. a4 {[%clk 0:02:51]}  Qb6 {[%clk 0:02:30]} 14. Nbd2 {[%clk 0:02:44]}  c5 {[%clk 0:02:19]} 15. c3 {[%clk 0:02:37]}  Rfc8 {[%clk 0:02:14]} 16. b4 {[%clk 0:02:25]}  c4 {[%clk 0:02:13]} 17. a5 {[%clk 0:02:07]}  Qd8 {[%clk 0:02:12]} 18. Qc2 {[%clk 0:02:06]}  Nc7 {[%clk 0:01:57]} 19. Ne5 {[%clk 0:02:01]}  Nce8 {[%clk 0:01:56]} 20. Rae1 {[%clk 0:01:50]}  Nd6 {[%clk 0:01:56]} 21. f3 {[%clk 0:01:49]}  e6 {[%clk 0:01:49]} 22. Bd1 {[%clk 0:01:46]}  Bh6 {[%clk 0:01:25]} 23. Kh1 {[%clk 0:01:44]}  Qe7 {[%clk 0:01:22]} 24. Rf2 {[%clk 0:01:24]}  Nd7 {[%clk 0:01:15]} 25. Nxd7 {[%clk 0:01:17]}  Qxd7 {[%clk 0:01:16]} 26. Nf1 {[%clk 0:01:08]}  f5 {[%clk 0:01:13]} 27. Be5 {[%clk 0:01:06]}  Nf7 {[%clk 0:01:13]} 28. f4 {[%clk 0:01:03]}  Nxe5 {[%clk 0:01:09]} 29. dxe5 {[%clk 0:01:02]}  g5 {[%clk 0:01:04]} 30. Nh2 {[%clk 0:01:01]}  Kh8 {[%clk 0:00:59]} 31. Qd2 {[%clk 0:00:52]}  gxf4 {[%clk 0:00:50]} 32. exf4 {[%clk 0:00:47]}  Rg8 {[%clk 0:00:40]} 33. Nf3 {[%clk 0:00:40]}  Rg3 {[%clk 0:00:39]} 34. Nd4 {[%clk 0:00:38]}  Rag8 {[%clk 0:00:39]} 35. Re3 {[%clk 0:00:34]}  Bc8 {[%clk 0:00:35]} 36. Kh2 {[%clk 0:00:32]}  Qg7 {[%clk 0:00:34]} 37. Ref3 {[%clk 0:00:15]}  Bd7 {[%clk 0:00:20]} 38. Kh1 {[%clk 0:00:14]}  Qg6 {[%clk 0:00:17]} 39. Kh2 {[%clk 0:00:13]}  Qg7 {[%clk 0:00:16]} 40. Bc2 {[%clk 0:00:11]}  Qg6 {[%clk 0:00:15]} 41. Bd1 {[%clk 0:00:10]}  Bc8 {[%clk 0:00:13]} 42. Bc2 {[%clk 0:00:10]}  Bf8 {[%clk 0:00:08]} 43. Bd1 {[%clk 0:00:07]}  Be7 {[%clk 0:00:08]} 44. Qe2 {[%clk 0:00:06]}  Bh4 {[%clk 0:00:08]} 45. Qf1 {[%clk 0:00:06]}  Bd7 {[%clk 0:00:06]} 46. Ne2 {[%clk 0:00:05]}  Rxf3 {[%clk 0:00:05]} 47. Rxf3 {[%clk 0:00:06]}  Qg7 {[%clk 0:00:05]} 48. Nd4 {[%clk 0:00:05]}  Bg3+ {[%clk 0:00:05]} 49. Kh1 {[%clk 0:00:06]}  Qh6 {[%clk 0:00:06]} 50. Ne2 {[%clk 0:00:05]}  Bh4 {[%clk 0:00:06]} 51. g3 {[%clk 0:00:05]}  Be7 {[%clk 0:00:06]} 52. Kg2 {[%clk 0:00:05]}  Bc8 {[%clk 0:00:06]} 53. Nd4 {[%clk 0:00:05]}  Qg6 {[%clk 0:00:06]} 54. Qf2 {[%clk 0:00:04]}  Bd7 {[%clk 0:00:06]} 55. Kh2 {[%clk 0:00:05]}  Bd8 {[%clk 0:00:07]} 56. Be2 {[%clk 0:00:05]}  Bc7 {[%clk 0:00:07]} 57. Bd1 {[%clk 0:00:05]}  Bb8 {[%clk 0:00:08]} 58. Be2 {[%clk 0:00:06]}  Ba7 {[%clk 0:00:09]} 59. Bd1 {[%clk 0:00:06]}  Qf7 {[%clk 0:00:09]} 60. Be2 {[%clk 0:00:07]}  Rg6 {[%clk 0:00:09]} 61. Bd1 {[%clk 0:00:07]}  Qg8 {[%clk 0:00:09]} 62. Be2 {[%clk 0:00:07]}  Be8 {[%clk 0:00:08]} 63. Bd1 {[%clk 0:00:06]}  Rh6 {[%clk 0:00:09]} 64. Be2 {[%clk 0:00:06]}  Bh5 {[%clk 0:00:09]} 65. Re3 {[%clk 0:00:05]}  Bxd4 {[%clk 0:00:09]} 66. cxd4 {[%clk 0:00:05]}  Bxe2 {[%clk 0:00:10]} 67. Qxe2 {[%clk 0:00:05]}  Rg6 {[%clk 0:00:10]} 68. Rc3 {[%clk 0:00:05]}  Qg7 {[%clk 0:00:10]} 69. Qf2 {[%clk 0:00:05]}  Rh6 {[%clk 0:00:10]} 70. Qf3 {[%clk 0:00:05]}  Kg8 {[%clk 0:00:10]} 71. Kg2 {[%clk 0:00:05]}  Kf8 {[%clk 0:00:10]} 72. Re3 {[%clk 0:00:05]}  Rg6 {[%clk 0:00:10]} 73. Rc3 {[%clk 0:00:05]}  Qh6 {[%clk 0:00:09]} 74. g4 {[%clk 0:00:05]}  Qh4 {[%clk 0:00:08]} 75. Qg3 {[%clk 0:00:05]}  Qxg3+ {[%clk 0:00:07]} 76. Kxg3 {[%clk 0:00:06]}  Kg7 {[%clk 0:00:07]} 77. Rc2 {[%clk 0:00:05]}  h6 {[%clk 0:00:06]} 78. Rc3 {[%clk 0:00:06]}  Kh7 {[%clk 0:00:06]} 79. Kh4 {[%clk 0:00:06]}  Rg8 {[%clk 0:00:06]} 80. Kg3 {[%clk 0:00:06]}  Kg6 {[%clk 0:00:07]} 81. Kh4 {[%clk 0:00:06]}  Rf8 {[%clk 0:00:07]} 82. Rc2 {[%clk 0:00:06]}  fxg4 {[%clk 0:00:07]} 83. Kxg4 {[%clk 0:00:07]}  h5+ {[%clk 0:00:08]} 84. Kf3 {[%clk 0:00:07]}  Kh7 {[%clk 0:00:07]} 85. Rg2 {[%clk 0:00:07]}  Rg8 {[%clk 0:00:08]} 86. Rg5 {[%clk 0:00:06]}  Rxg5 {[%clk 0:00:08]} 87. fxg5 {[%clk 0:00:07]}  h4 {[%clk 0:00:09]} 88. Kf4 {[%clk 0:00:06]}  Kg6 {[%clk 0:00:09]} 89. Kg4 {[%clk 0:00:06]}  c3 {[%clk 0:00:09]} 0-1


[Site "https://www.chess.com"]

[Event "Titled Tuesday Blitz July 05 Late 2022"]
[White "Holt, Conrad"]
[Black "Kalashian, David"]
[WhiteFideId "2034387"]
[BlackFideId "13302418"]
[WhiteElo "2586"]
[BlackElo "2490"]
[Result "1-0"]
[Round "03"]
[TimeControl "180+1"]
[Date "2022.07.05"]
[WhiteClock "0:00:15"]
[BlackClock "0:00:02"]

1. d4 {[%clk 0:03:00]}  Nf6 {[%clk 0:02:58]} 2. c4 {[%clk 0:03:01]}  g6 {[%clk 0:02:58]} 3. Nc3 {[%clk 0:03:01]}  Bg7 {[%clk 0:02:59]} 4. e4 {[%clk 0:03:02]}  d6 {[%clk 0:02:58]} 5. Nf3 {[%clk 0:03:02]}  Bg4 {[%clk 0:02:58]} 6. Be2 {[%clk 0:03:02]}  Nfd7 {[%clk 0:02:59]} 7. Ng1 {[%clk 0:03:00]}  Bxe2 {[%clk 0:02:58]} 8. Ngxe2 {[%clk 0:03:01]}  O-O {[%clk 0:02:43]} 9. O-O {[%clk 0:02:57]}  e5 {[%clk 0:02:43]} 10. Be3 {[%clk 0:02:50]}  Nc6 {[%clk 0:02:41]} 11. d5 {[%clk 0:02:46]}  Ne7 {[%clk 0:02:41]} 12. b4 {[%clk 0:02:46]}  f5 {[%clk 0:02:39]} 13. f3 {[%clk 0:02:45]}  f4 {[%clk 0:02:32]} 14. Bf2 {[%clk 0:02:44]}  g5 {[%clk 0:02:32]} 15. c5 {[%clk 0:02:44]}  Ng6 {[%clk 0:02:31]} 16. c6 {[%clk 0:02:43]}  Nf6 {[%clk 0:02:15]} 17. cxb7 {[%clk 0:02:42]}  Rb8 {[%clk 0:02:15]} 18. Nb5 {[%clk 0:02:08]}  Rxb7 {[%clk 0:02:07]} 19. Nxa7 {[%clk 0:02:07]}  g4 {[%clk 0:02:07]} 20. Nc6 {[%clk 0:02:06]}  Qd7 {[%clk 0:01:47]} 21. Kh1 {[%clk 0:02:05]}  h5 {[%clk 0:01:26]} 22. Qd3 {[%clk 0:01:38]}  h4 {[%clk 0:00:56]} 23. fxg4 {[%clk 0:01:31]}  Nxg4 {[%clk 0:00:54]} 24. Bg1 {[%clk 0:01:30]}  Nf6 {[%clk 0:00:41]} 25. Rf3 {[%clk 0:01:24]}  Nh7 {[%clk 0:00:39]} 26. Qa6 {[%clk 0:01:20]}  Rbb8 {[%clk 0:00:25]} 27. Nxb8 {[%clk 0:01:18]}  Rxb8 {[%clk 0:00:26]} 28. Qc4 {[%clk 0:00:59]}  Ng5 {[%clk 0:00:25]} 29. Rc3 {[%clk 0:00:59]}  h3 {[%clk 0:00:21]} 30. gxh3 {[%clk 0:00:59]}  f3 {[%clk 0:00:22]} 31. Ng3 {[%clk 0:00:50]}  Qxh3 {[%clk 0:00:11]} 32. Rc2 {[%clk 0:00:49]}  Nf4 {[%clk 0:00:12]} 33. Be3 {[%clk 0:00:47]}  Ng2 {[%clk 0:00:08]} 34. Bxg5 {[%clk 0:00:42]}  Kh7 {[%clk 0:00:05]} 35. Qf1 {[%clk 0:00:38]}  Rf8 {[%clk 0:00:05]} 36. Rxc7 {[%clk 0:00:37]}  Kg6 {[%clk 0:00:03]} 37. Bd2 {[%clk 0:00:33]}  Rh8 {[%clk 0:00:03]} 38. Rxg7+ {[%clk 0:00:26]}  Kxg7 {[%clk 0:00:03]} 39. Nf5+ {[%clk 0:00:26]}  Kf7 {[%clk 0:00:02]} 40. Nh6+ {[%clk 0:00:24]}  Kg6 {[%clk 0:00:01]} 41. Qf2 {[%clk 0:00:22]}  Rxh6 {[%clk 0:00:01]} 42. Bxh6 {[%clk 0:00:22]}  Kxh6 {[%clk 0:00:02]} 43. Rg1 {[%clk 0:00:20]}  Nf4 {[%clk 0:00:02]} 44. Qg3 {[%clk 0:00:18]}  Qe6 {[%clk 0:00:02]} 45. Qg5+ {[%clk 0:00:15]}  Kh7 {[%clk 0:00:02]} 46. Qg7# {[%clk 0:00:15]} 1-0


[Site "https://www.chess.com"]

[Event "Titled Tuesday Blitz July 05 Late 2022"]
[White "Ibarra Jerez, Jose Carlos"]
[Black "Jaracz, Pawel"]
[WhiteFideId "2226332"]
[BlackFideId "1102222"]
[WhiteElo "2628"]
[BlackElo "2459"]
[Result "1/2-1/2"]
[Round "03"]
[TimeControl "180+1"]
[Date "2022.07.05"]
[WhiteClock "0:00:10"]
[BlackClock "0:00:11"]

1. e4 {[%clk 0:03:00]}  c5 {[%clk 0:02:58]} 2. Nc3 {[%clk 0:03:00]}  Nc6 {[%clk 0:02:57]} 3. Nf3 {[%clk 0:03:00]}  Nd4 {[%clk 0:02:52]} 4. Nxd4 {[%clk 0:02:47]}  cxd4 {[%clk 0:02:52]} 5. Ne2 {[%clk 0:02:48]}  e5 {[%clk 0:02:52]} 6. c3 {[%clk 0:02:48]}  dxc3 {[%clk 0:02:48]} 7. Nxc3 {[%clk 0:02:46]}  Nf6 {[%clk 0:02:46]} 8. Bc4 {[%clk 0:02:45]}  Bc5 {[%clk 0:02:44]} 9. O-O {[%clk 0:02:40]}  O-O {[%clk 0:02:41]} 10. d3 {[%clk 0:02:41]}  h6 {[%clk 0:02:38]} 11. h3 {[%clk 0:02:30]}  d6 {[%clk 0:02:34]} 12. Kh1 {[%clk 0:02:27]}  Be6 {[%clk 0:02:34]} 13. f4 {[%clk 0:02:16]}  Bxc4 {[%clk 0:02:20]} 14. dxc4 {[%clk 0:02:16]}  exf4 {[%clk 0:02:19]} 15. Bxf4 {[%clk 0:02:15]}  Re8 {[%clk 0:02:06]} 16. Qd3 {[%clk 0:02:05]}  Re6 {[%clk 0:02:05]} 17. a3 {[%clk 0:01:58]}  a5 {[%clk 0:01:59]} 18. Rad1 {[%clk 0:01:52]}  Qe8 {[%clk 0:01:56]} 19. Rfe1 {[%clk 0:01:40]}  a4 {[%clk 0:01:42]} 20. Re2 {[%clk 0:01:36]}  Qc6 {[%clk 0:01:38]} 21. e5 {[%clk 0:01:09]}  dxe5 {[%clk 0:01:35]} 22. Rxe5 {[%clk 0:01:09]}  Bf8 {[%clk 0:01:05]} 23. Nb5 {[%clk 0:01:03]}  Rxe5 {[%clk 0:00:57]} 24. Bxe5 {[%clk 0:01:03]}  Re8 {[%clk 0:00:58]} 25. Nd4 {[%clk 0:00:54]}  Qb6 {[%clk 0:00:58]} 26. Bxf6 {[%clk 0:00:54]}  Qxf6 {[%clk 0:00:57]} 27. Rf1 {[%clk 0:00:54]}  Qd6 {[%clk 0:00:53]} 28. Qf3 {[%clk 0:00:49]}  Qg6 {[%clk 0:00:49]} 29. Qxb7 {[%clk 0:00:42]}  Bc5 {[%clk 0:00:48]} 30. Nf5 {[%clk 0:00:32]}  Kh7 {[%clk 0:00:46]} 31. Qb5 {[%clk 0:00:31]}  Re5 {[%clk 0:00:46]} 32. Qd7 {[%clk 0:00:24]}  Qf6 {[%clk 0:00:38]} 33. Qd3 {[%clk 0:00:21]}  Qg6 {[%clk 0:00:35]} 34. Qf3 {[%clk 0:00:19]}  Qf6 {[%clk 0:00:31]} 35. Qd3 {[%clk 0:00:19]}  Qg6 {[%clk 0:00:22]} 36. Qf3 {[%clk 0:00:19]}  Qf6 {[%clk 0:00:22]} 37. g4 {[%clk 0:00:15]}  g6 {[%clk 0:00:20]} 38. Ng3 {[%clk 0:00:14]}  Qxf3+ {[%clk 0:00:20]} 39. Rxf3 {[%clk 0:00:15]}  Kg7 {[%clk 0:00:21]} 40. Kg2 {[%clk 0:00:14]}  Bd4 {[%clk 0:00:20]} 41. b3 {[%clk 0:00:08]}  axb3 {[%clk 0:00:20]} 42. Rxb3 {[%clk 0:00:09]}  Rc5 {[%clk 0:00:19]} 43. Rb4 {[%clk 0:00:09]}  Bc3 {[%clk 0:00:18]} 44. Ra4 {[%clk 0:00:10]}  Re5 {[%clk 0:00:17]} 45. Kf3 {[%clk 0:00:10]}  Bd2 {[%clk 0:00:16]} 46. Ne4 {[%clk 0:00:10]}  Bc1 {[%clk 0:00:17]} 47. Ra7 {[%clk 0:00:09]}  Kf8 {[%clk 0:00:16]} 48. Nd6 {[%clk 0:00:07]}  f5 {[%clk 0:00:17]} 49. gxf5 {[%clk 0:00:07]}  gxf5 {[%clk 0:00:18]} 50. Rf7+ {[%clk 0:00:07]}  Kg8 {[%clk 0:00:17]} 51. Rxf5 {[%clk 0:00:07]}  Re6 {[%clk 0:00:18]} 52. Ne4 {[%clk 0:00:07]}  Bxa3 {[%clk 0:00:18]} 53. c5 {[%clk 0:00:07]}  Kg7 {[%clk 0:00:18]} 54. Rd5 {[%clk 0:00:07]}  Kg6 {[%clk 0:00:17]} 55. h4 {[%clk 0:00:07]}  Bc1 {[%clk 0:00:16]} 56. h5+ {[%clk 0:00:07]}  Kf7 {[%clk 0:00:16]} 57. Rd7+ {[%clk 0:00:07]}  Re7 {[%clk 0:00:13]} 58. Rd6 {[%clk 0:00:06]}  Re6 {[%clk 0:00:13]} 59. Rd7+ {[%clk 0:00:06]}  Re7 {[%clk 0:00:14]} 60. Rd5 {[%clk 0:00:07]}  Re6 {[%clk 0:00:13]} 61. Rd1 {[%clk 0:00:06]}  Ba3 {[%clk 0:00:12]} 62. Ra1 {[%clk 0:00:06]}  Bb2 {[%clk 0:00:12]} 63. Ra7+ {[%clk 0:00:05]}  Re7 {[%clk 0:00:13]} 64. Ra6 {[%clk 0:00:05]}  Re6 {[%clk 0:00:13]} 65. Nd6+ {[%clk 0:00:05]}  Kf6 {[%clk 0:00:13]} 66. Rb6 {[%clk 0:00:05]}  Bd4 {[%clk 0:00:12]} 67. Ne4+ {[%clk 0:00:05]}  Ke5 {[%clk 0:00:13]} 68. Rb5 {[%clk 0:00:05]}  Kd5 {[%clk 0:00:12]} 69. Ra5 {[%clk 0:00:04]}  Kc6 {[%clk 0:00:11]} 70. Ra6+ {[%clk 0:00:04]}  Kd5 {[%clk 0:00:11]} 71. Ra5 {[%clk 0:00:03]}  Kc6 {[%clk 0:00:11]} 72. Ra4 {[%clk 0:00:04]}  Kd5 {[%clk 0:00:12]} 73. Ra3 {[%clk 0:00:04]}  Rxe4 {[%clk 0:00:11]} 74. c6 {[%clk 0:00:04]}  Re7 {[%clk 0:00:12]} 75. c7 {[%clk 0:00:05]}  Rxc7 {[%clk 0:00:11]} 76. Ra6 {[%clk 0:00:05]}  Rc6 {[%clk 0:00:10]} 77. Rxc6 {[%clk 0:00:05]}  Kxc6 {[%clk 0:00:11]} 78. Kg2 {[%clk 0:00:05]}  Kd5 {[%clk 0:00:10]} 79. Kh1 {[%clk 0:00:06]}  Ke5 {[%clk 0:00:11]} 80. Kg2 {[%clk 0:00:07]}  Kf4 {[%clk 0:00:11]} 81. Kh1 {[%clk 0:00:08]}  Kg4 {[%clk 0:00:11]} 82. Kg2 {[%clk 0:00:09]}  Kh4 {[%clk 0:00:11]} 83. Kh1 {[%clk 0:00:10]}  Kh3 {[%clk 0:00:11]} 1/2-1/2


[Site "https://www.chess.com"]

[Event "Titled Tuesday Blitz July 05 Late 2022"]
[White "Kamsky, Gata"]
[Black "Matinian, Nikita"]
[WhiteFideId "2000024"]
[BlackFideId "24129100"]
[WhiteElo "2645"]
[BlackElo "2422"]
[Result "1/2-1/2"]
[Round "03"]
[TimeControl "180+1"]
[Date "2022.07.05"]
[WhiteClock "0:00:35"]
[BlackClock "0:00:23"]

1. e4 {[%clk 0:03:00]}  c5 {[%clk 0:02:58]} 2. Nf3 {[%clk 0:02:56]}  d6 {[%clk 0:02:58]} 3. d4 {[%clk 0:02:54]}  cxd4 {[%clk 0:02:59]} 4. Nxd4 {[%clk 0:02:54]}  Nf6 {[%clk 0:03:00]} 5. Nc3 {[%clk 0:02:53]}  g6 {[%clk 0:02:59]} 6. Be2 {[%clk 0:02:47]}  Bg7 {[%clk 0:02:59]} 7. O-O {[%clk 0:02:47]}  O-O {[%clk 0:02:59]} 8. Be3 {[%clk 0:02:47]}  Nc6 {[%clk 0:02:59]} 9. Qd2 {[%clk 0:02:47]}  Ng4 {[%clk 0:02:58]} 10. Bxg4 {[%clk 0:02:46]}  Bxg4 {[%clk 0:02:59]} 11. Nxc6 {[%clk 0:02:44]}  bxc6 {[%clk 0:02:58]} 12. Bh6 {[%clk 0:02:44]}  Qb6 {[%clk 0:02:52]} 13. Bxg7 {[%clk 0:02:44]}  Kxg7 {[%clk 0:02:52]} 14. b3 {[%clk 0:02:42]}  Rad8 {[%clk 0:02:49]} 15. Rae1 {[%clk 0:02:39]}  e5 {[%clk 0:02:44]} 16. Kh1 {[%clk 0:02:37]}  f6 {[%clk 0:02:26]} 17. f4 {[%clk 0:02:34]}  Qd4 {[%clk 0:02:15]} 18. Qe3 {[%clk 0:02:14]}  Qxe3 {[%clk 0:02:08]} 19. Rxe3 {[%clk 0:02:13]}  d5 {[%clk 0:02:08]} 20. Na4 {[%clk 0:02:03]}  dxe4 {[%clk 0:01:48]} 21. Rxe4 {[%clk 0:02:00]}  Rd2 {[%clk 0:01:45]} 22. fxe5 {[%clk 0:01:31]}  fxe5 {[%clk 0:01:46]} 23. Kg1 {[%clk 0:01:29]}  Rxf1+ {[%clk 0:01:30]} 24. Kxf1 {[%clk 0:01:28]}  Bf5 {[%clk 0:01:30]} 25. Rxe5 {[%clk 0:01:28]}  Rxc2 {[%clk 0:01:27]} 26. a3 {[%clk 0:01:14]}  Kf6 {[%clk 0:01:19]} 27. Ra5 {[%clk 0:01:10]}  Bd3+ {[%clk 0:01:18]} 28. Kg1 {[%clk 0:01:09]}  Be4 {[%clk 0:01:09]} 29. g3 {[%clk 0:01:07]}  h5 {[%clk 0:01:03]} 30. Rxa7 {[%clk 0:01:03]}  Rg2+ {[%clk 0:01:02]} 31. Kf1 {[%clk 0:01:03]}  Rxh2 {[%clk 0:01:03]} 32. Nc5 {[%clk 0:01:00]}  Bd5 {[%clk 0:01:03]} 33. a4 {[%clk 0:00:46]}  Kg5 {[%clk 0:01:04]} 34. a5 {[%clk 0:00:45]}  Kg4 {[%clk 0:01:04]} 35. Rg7 {[%clk 0:00:44]}  g5 {[%clk 0:01:04]} 36. a6 {[%clk 0:00:43]}  Kf3 {[%clk 0:00:58]} 37. Ke1 {[%clk 0:00:43]}  Ke3 {[%clk 0:00:58]} 38. Re7+ {[%clk 0:00:41]}  Kd4 {[%clk 0:00:58]} 39. b4 {[%clk 0:00:41]}  h4 {[%clk 0:00:52]} 40. gxh4 {[%clk 0:00:40]}  gxh4 {[%clk 0:00:53]} 41. a7 {[%clk 0:00:40]}  Ra2 {[%clk 0:00:51]} 42. Rh7 {[%clk 0:00:39]}  Ke3 {[%clk 0:00:52]} 43. Re7+ {[%clk 0:00:38]}  Kf4 {[%clk 0:00:46]} 44. Rh7 {[%clk 0:00:37]}  Kg3 {[%clk 0:00:46]} 45. Rg7+ {[%clk 0:00:37]}  Kf3 {[%clk 0:00:41]} 46. Rh7 {[%clk 0:00:36]}  Kg3 {[%clk 0:00:32]} 47. Rg7+ {[%clk 0:00:36]}  Kf3 {[%clk 0:00:23]} 48. Rh7 {[%clk 0:00:35]}  Kg3 {[%clk 0:00:23]} 1/2-1/2


[Site "https://www.chess.com"]

[Event "Titled Tuesday Blitz July 05 Late 2022"]
[White "Kopczynski, Michal"]
[Black "Dardha, Daniel"]
[WhiteFideId "1124200"]
[BlackFideId "240990"]
[WhiteElo "2235"]
[BlackElo "2482"]
[Result "0-1"]
[Round "03"]
[TimeControl "180+1"]
[Date "2022.07.06"]
[WhiteClock "0:00:14"]
[BlackClock "0:00:28"]

1. e4 {[%clk 0:03:00]}  c5 {[%clk 0:02:57]} 2. d4 {[%clk 0:03:00]}  cxd4 {[%clk 0:02:47]} 3. c3 {[%clk 0:03:00]}  Nf6 {[%clk 0:02:46]} 4. Bd3 {[%clk 0:02:59]}  dxc3 {[%clk 0:02:34]} 5. Nxc3 {[%clk 0:03:00]}  Nc6 {[%clk 0:02:34]} 6. f4 {[%clk 0:03:00]}  e5 {[%clk 0:02:32]} 7. Nf3 {[%clk 0:02:59]}  Bc5 {[%clk 0:02:31]} 8. Nxe5 {[%clk 0:02:35]}  O-O {[%clk 0:02:25]} 9. Nxc6 {[%clk 0:01:45]}  dxc6 {[%clk 0:02:26]} 10. Qf3 {[%clk 0:01:36]}  Ng4 {[%clk 0:02:14]} 11. Nd1 {[%clk 0:01:26]}  Qh4+ {[%clk 0:01:55]} 12. g3 {[%clk 0:01:04]}  Qh6 {[%clk 0:01:50]} 13. h3 {[%clk 0:01:00]}  Nf6 {[%clk 0:01:45]} 14. f5 {[%clk 0:00:55]}  Qh5 {[%clk 0:01:41]} 15. g4 {[%clk 0:00:50]}  Qh4+ {[%clk 0:01:37]} 16. Kf1 {[%clk 0:00:51]}  Rd8 {[%clk 0:01:25]} 17. Bf4 {[%clk 0:00:39]}  h5 {[%clk 0:00:55]} 18. g5 {[%clk 0:00:31]}  Rxd3 {[%clk 0:00:53]} 19. Qxd3 {[%clk 0:00:25]}  Qxf4+ {[%clk 0:00:51]} 20. Kg2 {[%clk 0:00:25]}  Qxg5+ {[%clk 0:00:50]} 21. Qg3 {[%clk 0:00:26]}  Qxg3+ {[%clk 0:00:50]} 22. Kxg3 {[%clk 0:00:27]}  Nxe4+ {[%clk 0:00:50]} 23. Kf4 {[%clk 0:00:26]}  Nf6 {[%clk 0:00:50]} 24. Ne3 {[%clk 0:00:25]}  Bxe3+ {[%clk 0:00:49]} 25. Kxe3 {[%clk 0:00:26]}  Bxf5 {[%clk 0:00:50]} 26. Rad1 {[%clk 0:00:23]}  Nd5+ {[%clk 0:00:49]} 27. Kf3 {[%clk 0:00:23]}  Re8 {[%clk 0:00:48]} 28. Rhe1 {[%clk 0:00:23]}  Rxe1 {[%clk 0:00:45]} 29. Rxe1 {[%clk 0:00:24]}  Bxh3 {[%clk 0:00:46]} 30. Re8+ {[%clk 0:00:23]}  Kh7 {[%clk 0:00:46]} 31. Ra8 {[%clk 0:00:24]}  a6 {[%clk 0:00:45]} 32. Rb8 {[%clk 0:00:24]}  b5 {[%clk 0:00:43]} 33. Ra8 {[%clk 0:00:25]}  h4 {[%clk 0:00:40]} 34. Rxa6 {[%clk 0:00:24]}  Be6 {[%clk 0:00:38]} 35. Rxc6 {[%clk 0:00:24]}  g5 {[%clk 0:00:37]} 36. Rc5 {[%clk 0:00:21]}  g4+ {[%clk 0:00:37]} 37. Kg2 {[%clk 0:00:21]}  Nf4+ {[%clk 0:00:34]} 38. Kg1 {[%clk 0:00:20]}  g3 {[%clk 0:00:32]} 39. Rxb5 {[%clk 0:00:19]}  h3 {[%clk 0:00:32]} 40. a4 {[%clk 0:00:17]}  h2+ {[%clk 0:00:30]} 41. Kh1 {[%clk 0:00:17]}  Bh3 {[%clk 0:00:28]} 42. Rg5 {[%clk 0:00:14]}  Bg2# {[%clk 0:00:28]} 0-1


[Site "https://www.chess.com"]